Workbook

Sheet Simulations
A1: Reinsurance Proposal Evaluation
D2: Sample | E2: =VLOOKUP(RAND(),$D$4:$E$100,2,TRUE) -> 3400 | G2: Inputs | W2: Savings by Simulation
B3: Claims frequency | C3: Annual Claim | D3: Claims cdf | E3: Annual Claim | G3: # of Simulations | H3: 1 | V3: Simulation | W3: Proposal 1 | X3: Proposal 2 | Y3: Proposal 3 | Z3: No Reinsurance | AD3: Boxplot Data
D4: 0 | E4: =C5 -> 0 | V4: 1 | W4: 112000 | X4: -189800 | Y4: -283600 | Z4: 0 | AE4: Proposal 1 | AF4: Proposal 2 | AG4: Proposal 3 | AH4: Quartile
B5: 0.132956348 | C5: 0 | D5: =B5 -> 0.132956348 | E5: =C6 -> 10 | G5: Government mms | H5: 1000 | V5: 2 | W5: 2787000 | X5: 3265200 | Y5: 3516400 | Z5: 0 | AD5: Min | AE5: =_xlfn.QUARTILE.INC(W$4:W$23,$AH5) -> -213000 | AF5: =_xlfn.QUARTILE.INC(X$4:X$23,$AH5) -> -364800 | AG5: =_xlfn.QUARTILE.INC(Y$4:Y$23,$AH5) -> -483600 | AH5: 0
B6: 0.02454157594 | C6: 10 | D6: =B6+D5 -> 0.1574979239 | E6: =C7 -> 40 | G6: Commercial mms | H6: 9000 | V6: 3 | W6: 1087000 | X6: 1195200 | Y6: 1276400 | Z6: 0 | AD6: Q1 | AE6: =_xlfn.QUARTILE.INC(W$4:W$23,$AH6) -> 318250 | AF6: 98950 | AG6: 46400 | AH6: 1
B7: 0.02057127594 | C7: 40 | D7: 0.1780691999 | E7: =C8 -> 70 | G7: TOTAL # of Members | H7: =SUM(H5:H6) -> 10000 | V7: 4 | W7: -113000 | X7: -364800 | Y7: -483600 | Z7: 0 | AD7: Median | AE7: 937000 | AF7: 685200 | AG7: 716400 | AH7: 2
B8: 0.02560997594 | C8: 70 | D8: 0.2036791758 | E8: 100 | V8: 5 | W8: 2237000 | X8: 2385200 | Y8: 2636400 | Z8: 0 | AD8: Q3 | AE8: 2162000 | AF8: 2265200 | AG8: 2516400 | AH8: 3
B9: 0.02602347594 | C9: 100 | D9: 0.2297026517 | E9: 130 | G9: Proposal 1 | V9: 6 | W9: 3762000 | X9: 3960200 | Y9: 4436400 | Z9: 0 | AD9: Max | AE9: 4962000 | AF9: 5880200 | AG9: 6356400 | AH9: 4
B10: 0.01823072406 | C10: 130 | D10: 0.2479333758 | E10: 150 | G10: Deductible | H10: 600000 | J10: Reinsurnace | K10: 1950000 | V10: 7 | W10: 387000 | X10: 195200 | Y10: 156400 | Z10: 0
B11: 0.02264797594 | C11: 150 | D11: 0.2705813517 | E11: 180 | G11: Maximum 1 | H11: 5000000 | J11: Insurance | K11: 46640400 | V11: 8 | W11: 112000 | X11: -189800 | Y11: -283600 | Z11: 0 | AD11: Box 1-hidden | AE11: =AE6 -> 318250 | AF11: =AF6 -> 98950 | AG11: =AG6 -> 46400
B12: 0.02099587594 | C12: 180 | D12: 0.2915772277 | E12: 210 | G12: % of Maximum 1 | H12: 0.5 | J12: Check | K12: 48590400 | L12: =K12=K11+K10 -> TRUE | V12: 9 | W12: 387000 | X12: 195200 | Y12: 156400 | Z12: 0 | AD12: Box 2-lower | AE12: =AE7-AE6 -> 618750 | AF12: 586250 | AG12: 670000
B13: 0.01996037594 | C13: 210 | D13: 0.3115376036 | E13: 240 | G13: Maximum 2 | H13: 0 | J13: Premium | K13: =H15*$H$5*12+H16*$H$6*12 -> 213000 | V13: 10 | W13: 2137000 | X13: 2225200 | Y13: 2476400 | Z13: 0 | AD13: Box 3-upper | AE13: 1225000 | AF13: 1580000 | AG13: 1800000
B14: 0.01276762406 | C14: 240 | D14: 0.3243052277 | E14: 260 | G14: % of Maximum 2 | H14: 0 | J14: Save | K14: =K10-K13 -> 1737000 | V14: 11 | W14: 712000 | X14: 370200 | Y14: 356400 | Z14: 0
B15: 0.01192312406 | C15: 260 | D15: 0.3362283517 | E15: 310 | G15: PMPM-government | H15: 2 | V15: 12 | W15: 1512000 | X15: 1370200 | Y15: 1476400 | Z15: 0 | AD15: Whisker Top | AE15: =AE9-AE8 -> 2800000 | AF15: =AF9-AF8 -> 3615000 | AG15: =AG9-AG8 -> 3840000
B16: 0.02486992406 | C16: 310 | D16: 0.3610982758 | E16: 360 | G16: PMPM-commercial | H16: 1.75 | V16: 13 | W16: 1037000 | X16: 545200 | Y16: 556400 | Z16: 0 | AD16: Whisker Bottom | AE16: =AE6-AE5 -> 531250 | AF16: =AF6-AF5 -> 463750 | AG16: =AG6-AG5 -> 530000
B17: 0.02875647594 | C17: 360 | D17: 0.3898547517 | E17: 410 | V17: 14 | W17: 2287000 | X17: 3435200 | Y17: 3516400 | Z17: 0
B18: 0.02664327594 | C18: 410 | D18: 0.4164980277 | E18: 470 | G18: Proposal 2 | V18: 15 | W18: -113000 | X18: -364800 | Y18: -483600 | Z18: 0
B19: 0.01836382406 | C19: 470 | D19: 0.4348618517 | E19: 520 | G19: Deductible | H19: 1000000 | J19: Reinsurance | K19: 2440000 | V19: 16 | W19: 387000 | X19: 195200 | Y19: 156400 | Z19: 0
B20: 0.02302147594 | C20: 520 | D20: 0.4578833277 | E20: 580 | G20: Maximum 1 | H20: 2000000 | J20: Insurance | K20: 46150400 | V20: 17 | W20: -213000 | X20: -364800 | Y20: -483600 | Z20: 0
B21: 0.01521622406 | C21: 580 | D21: 0.4730995517 | E21: 630 | G21: % of Maximum 1 | H21: 0.7 | J21: Check | K21: 48590400 | L21: =K21=K20+K19 -> TRUE | V21: 18 | W21: 4962000 | X21: 5880200 | Y21: 6356400 | Z21: 0
B22: 0.01388442406 | C22: 630 | D22: 0.4869839758 | E22: 690 | G22: Maximum 2 | H22: 3000000 | J22: Premium | K22: =H24*$H$5*12+H25*$H$6*12 -> 364800 | V22: 19 | W22: 837000 | X22: 825200 | Y22: 876400 | Z22: 0
B23: 0.01902467594 | C23: 690 | D23: 0.5060086517 | E23: 750 | G23: % of Maximum 2 | H23: 0.8 | J23: Save | K23: =K19-K22 -> 2075200 | V23: 20 | W23: 1737000 | X23: 2075200 | Y23: 2156400 | Z23: 0
B24: 0.01803207594 | C24: 750 | D24: 0.5240407277 | E24: 800 | G24: PMPM-government | H24: 3.4
B25: 0.01707567594 | C25: 800 | D25: 0.5411164036 | E25: 860 | G25: PMPM-commercial | H25: 3
B26: 0.009938924062 | C26: 860 | D26: 0.5510553277 | E26: 910
B27: 0.01533117594 | C27: 910 | D27: 0.5663865036 | E27: 970 | G27: Proposal 3
B28: 0.008351724062 | C28: 970 | D28: 0.5747382277 | E28: 1000 | G28: Deductible | H28: 1000000 | J28: Reinsurance | K28: 2640000
B29: 0.007744424062 | C29: 1000 | D29: 0.5824826517 | E29: 1100 | G29: Maximum 1 | H29: 2000000 | J29: Insurance | K29: 45950400
B30: 0.007189824062 | C30: 1100 | D30: 0.5896724758 | E30: 1200 | G30: % of Maximum 1 | H30: 0.8 | J30: Check | K30: 48590400 | L30: =K30=K29+K28 -> TRUE
B31: 0.02047142406 | C31: 1200 | D31: 0.6101438999 | E31: 1300 | G31: Maximum 2 | H31: 3000000 | J31: Premium | K31: =H33*$H$5*12+H34*$H$6*12 -> 483600
B32: 0.01752372406 | C32: 1300 | D32: 0.6276676239 | E32: 1500 | G32: % of Maximum 2 | H32: 0.8 | J32: Save | K32: =K28-K31 -> 2156400
B33: 0.02163187594 | C33: 1500 | D33: 0.6492994999 | E33: 1600 | G33: PMPM-government | H33: 4.3
B34: 0.01349892406 | C34: 1600 | D34: 0.6627984239 | E34: 1700 | G34: PMPM-commercial | H34: 4
B35: 0.01828527594 | C35: 1700 | D35: 0.6810836999 | E35: 1900
B36: 0.01690697594 | C36: 1900 | D36: 0.6979906758 | E36: 2000
B37: 0.009458424062 | C37: 2000 | D37: 0.7074490999 | E37: 2100
B38: 0.008356624062 | C38: 2100 | D38: =B38+D37 -> 0.7158057239 | E38: 2300
B39: 0.01375247594 | C39: 2300 | D39: 0.7295581999 | E39: 2400
B40: 0.01307627594 | C40: 2400 | D40: 0.7426344758 | E40: 2600
B41: 0.005968424062 | C41: 2600 | D41: 0.7486028999 | E41: 2700
B42: 0.01167567594 | C42: 2700 | D42: 0.7602785758 | E42: 2900
B43: 0.01232742406 | C43: 2900 | D43: 0.7726059999 | E43: 3200
B44: 0.01680417594 | C44: 3200 | D44: 0.7894101758 | E44: 3400
B45: 0.01542997594 | C45: 3400 | D45: 0.8048401517 | E45: 3700
B46: 0.01416387594 | C46: 3700 | D46: 0.8190040277 | E46: 4000
B47: 0.006754024062 | C47: 4000 | D47: 0.8257580517 | E47: 4300
B48: 0.005772524062 | C48: 4300 | D48: 0.8315305758 | E48: 4500
B49: 0.004948224062 | C49: 4500 | D49: 0.8364787999 | E49: 4800
B50: 0.004276924062 | C50: 4800 | D50: 0.8407557239 | E50: 5100
B51: 0.007660316556 | C51: 5100 | D51: 0.8484160405 | E51: 5400
B52: 0.005470183444 | C52: 5400 | D52: 0.8538862239 | E52: 5800
B53: 0.01038628344 | C53: 5800 | D53: 0.8642725074 | E53: 6300
B54: 0.01046901656 | C54: 6300 | D54: 0.8747415239 | E54: 6900
B55: 0.007657883444 | C55: 6900 | D55: 0.8823994074 | E55: 7400
B56: 0.006702483444 | C56: 7400 | D56: 0.8891018908 | E56: 8000
B57: 0.007627716556 | C57: 8000 | D57: 0.8967296074 | E57: 8900
B58: 0.01332328344 | C58: 8900 | D58: 0.9100528908 | E58: 10000
B59: 0.01055038344 | C59: 10000 | D59: 0.9206032743 | E59: 12000
B60: 0.008588683444 | C60: 12000 | D60: 0.9291919577 | E60: 13000
B61: 0.006926483444 | C61: 13000 | D61: 0.9361184411 | E61: 14000
B62: 0.005656683444 | C62: 14000 | D62: 0.9417751246 | E62: 16000
B63: 0.006361916556 | C63: 16000 | D63: 0.9481370411 | E63: 18000
B64: 0.007967783444 | C64: 18000 | D64: 0.9561048246 | E64: 24000
B65: 0.005105583444 | C65: 24000 | D65: 0.961210408 | E65: 27000
B66: 0.005375716556 | C66: 27000 | D66: 0.9665861246 | E66: 30000
B67: 0.004345916556 | C67: 30000 | D67: 0.9709320411 | E67: 33000
B68: 0.003649716556 | C68: 33000 | D68: 0.9745817577 | E68: 36000
B69: 0.003148616556 | C69: 36000 | D69: 0.9777303743 | E69: 39000
B70: 0.002783116556 | C70: 39000 | D70: =B70+D69 -> 0.9805134908 | E70: =C71 -> 42000
B71: 0.0008162834439 | C71: 42000 | D71: 0.9813297743 | E71: 46000
B72: 0.0006015834439 | C72: 46000 | D72: 0.9819313577 | E72: 49000
B73: 0.001670116556 | C73: 49000 | D73: 0.9836014743 | E73: 53000
B74: 0.002841616556 | C74: 53000 | D74: 0.9864430908 | E74: 60000
B75: 0.002394716556 | C75: 60000 | D75: 0.9888378074 | E75: 68000
B76: 0.003055916556 | C76: 68000 | D76: 0.9918937239 | E76: 80000
B77: 0.002326916556 | C77: 80000 | D77: 0.9942206405 | E77: 92000
B78: 0.0002655834439 | C78: 92000 | D78: 0.9944862239 | E78: 100000
B79: 0.001636316556 | C79: 100000 | D79: 0.9961225405 | E79: 110000
B80: 0.0006548398802 | C80: 110000 | D80: 0.9967773804 | E80: 130000
B81: 0.0004625601198 | C81: 130000 | D81: 0.9972399405 | E81: 140000
B82: 0.0004151398802 | C82: 140000 | D82: 0.9976550804 | E82: 150000
B83: 0.0004928601198 | C83: 150000 | D83: 0.9981479405 | E83: 170000
B84: 0.0004327398802 | C84: 170000 | D84: 0.9985806804 | E84: 200000
B85: 0.0002978601198 | C85: 200000 | D85: 0.9988785405 | E85: 230000
B86: 0.0002502398802 | C86: 230000 | D86: 0.9991287804 | E86: 260000
B87: 0.0001910398802 | C87: 260000 | D87: 0.9993198202 | E87: 290000
B88: 0.0001443601198 | C88: 290000 | D88: 0.9994641804 | E88: 340000
B89: 0.0001825398802 | C89: 340000 | D89: 0.9996467202 | E89: 390000
B90: 7.366011984e-05 | C90: 390000 | D90: 0.9997203804 | E90: 450000
B91: 3.996011984e-05 | C91: 450000 | D91: 0.9997603405 | E91: 600000
B92: 2.296011984e-05 | C92: 600000 | D92: 0.9997833006 | E92: 800000
B93: 4.806011984e-05 | C93: 800000 | D93: 0.9998313607 | E93: 1100000
B94: 1.326011984e-05 | C94: 1100000 | D94: 0.9998446208 | E94: 1250000
B95: 4.233988016e-05 | C95: 1250000 | D95: 0.9998869607 | E95: 1800000
B96: 3.053988016e-05 | C96: 1800000 | D96: 0.9999175006 | E96: 2700000
B97: 2.813988016e-05 | C97: 2700000 | D97: 0.9999456405 | E97: 3000000
B98: 2.453988016e-05 | C98: 3000000 | D98: 0.9999701804 | E98: 3200000
B99: 1.113988016e-05 | C99: 3200000 | D99: 0.9999813202 | E99: 4300000
B100: 1.033988016e-05 | C100: 4300000 | D100: =B100+D99 -> 0.9999916601 | E100: 6300000
B101: 8.33988016e-06 | C101: 6300000 | D101: =B101+D100 -> 1
